bitfinex/quotes_ETHUSD_20241217
["timestamp","ask_amount","ask_price","bid_price","bid_amount"]
[1734450158411,0.55,3947.9,3946.2,0.26320953]
[1734450158412,0.55,3947.2,3946.2,0.26320953]
[1734450159021,0.55,3947.2,3945.9,1.6504]
[1734450159414,3.08344,3947.2,3945.9,1.6504]
[1734450159618,0.55,3947.0,3945.9,1.6504]
[1734450160150,1.5936,3948.2,3946.1,1.6504]
[1734450160351,4.5936,3948.2,3946.2,0.02533617]
[1734450160514,0.12513123,3947.9,3946.4,1.6504]
[1734450162021,0.12513123,3947.9,3946.0,0.005]
[1734450162253,0.12513123,3947.9,3946.5,1.6504]
[1734450162755,0.55,3947.8,3946.5,1.6504]
[1734450165657,0.12513123,3947.9,3946.5,1.6504]
[1734450166317,0.12513123,3947.9,3946.0,0.005]
[1734450166520,4.15126,3947.8,3946.1,1.5322]
[1734450166717,2.96076912,3947.7,3946.1,1.5322]
[1734450167030,0.55,3947.6,3946.1,1.5322]
[1734450167231,0.55,3947.4,3946.1,1.5322]
[1734450167773,0.55,3947.6,3946.1,1.5322]
[1734450168282,0.55,3947.1,3946.1,1.5322]
[1734450168589,2.53347,3947.2,3946.0,0.005]
[1734450168590,0.55,3946.9,3946.0,0.005]
[1734450169720,3.08366,3946.9,3946.0,0.005]
[1734450170188,0.55,3946.6,3946.0,0.005]
[1734450170375,0.55,3946.9,3946.0,0.005]
[1734450170541,2.53383,3946.6,3946.0,0.005]
[1734450170872,0.55,3946.7,3946.0,0.005]
[1734450171075,3.08379,3946.7,3946.0,0.005]
[1734450171226,0.55,3946.5,3946.0,0.005]
[1734450173737,3.08389,3946.5,3946.0,0.005]
[1734450173971,0.55,3946.3,3946.0,0.005]
[1734450174342,1.53,3946.6,3946.0,0.005]
[1734450174343,0.55,3946.5,3946.0,0.005]
[1734450174882,0.508,3946.8,3946.0,0.005]
[1734450175082,1.53,3947.0,3946.0,0.005]
[1734450175290,3.0,3947.4,3946.0,0.005]
[1734450175291,1.53,3947.4,3946.0,0.005]
[1734450176842,0.61836443,3947.6,3946.1,1.627]
[1734450177037,1.53,3948.6,3946.1,1.65233739]
[1734450177291,0.12608796,3947.8,3946.5,1.627]
[1734450177490,0.12608796,3947.8,3946.6,0.81706362]
[1734450177657,0.12608796,3947.8,3946.7,1.627]
[1734450179374,1.65608796,3947.8,3946.3,1.627]
[1734450180405,4.18915796,3947.8,3946.3,1.627]
[1734450180697,0.55,3947.7,3946.3,1.627]
[1734450180867,0.2206088,3947.6,3946.3,1.627]
[1734450181290,0.12608796,3947.8,3946.3,1.627]
[1734450181800,0.55,3947.5,3946.3,1.627]
[1734450182093,0.12608796,3947.8,3946.3,1.627]
[1734450182094,0.55,3947.6,3946.3,1.627]
[1734450182608,0.55,3947.7,3946.3,1.627]
[1734450182903,0.55,3946.9,3946.0,0.005]
[1734450183078,0.55,3946.7,3946.0,0.005]
[1734450183285,0.18181719,3946.6,3946.0,0.005]
[1734450183452,2.2116,3946.5,3946.0,0.005]
[1734450183646,0.18181719,3946.4,3946.0,0.005]
[1734450183853,0.18181719,3946.4,3945.7,1.57944181]
[1734450184157,0.23934172,3946.3,3945.7,1.57944181]
[1734450184502,0.18181719,3946.2,3945.7,1.57944181]
[1734450184986,0.18181719,3946.7,3945.7,1.57944181]
[1734450185294,0.18186803,3946.6,3945.7,1.57944181]
[1734450185503,0.18186803,3946.5,3945.7,1.57944181]
[1734450185684,0.12396986,3947.2,3945.8,0.15794418]
[1734450185854,0.18196578,3947.1,3945.8,0.15794418]
[1734450186198,0.18196578,3947.0,3945.7,1.57944181]
[1734450186404,2.53373,3946.8,3945.7,1.57944181]
[1734450186635,1.6616,3946.6,3945.7,1.57944181]
[1734450186782,0.73196578,3946.5,3945.2,1.5958]
[1734450186974,0.18196578,3946.4,3945.2,1.5958]
[1734450187226,0.55,3946.5,3945.2,1.85538]
[1734450187227,0.18196578,3946.3,3945.2,1.85538]
[1734450187522,0.18196578,3946.2,3945.2,1.85538]
[1734450187846,1.5719,3947.1,3945.3,1.618]
[1734450187973,0.18207626,3947.0,3945.3,1.618]
[1734450188175,0.73207626,3946.9,3945.3,1.618]
[1734450188393,2.53382,3946.6,3945.3,1.618]
[1734450188625,2.53397,3946.4,3945.3,1.618]
[1734450188845,0.55,3946.4,3945.3,1.618]
[1734450189153,3.54363621,3946.6,3945.3,1.618]
[1734450189154,0.18204283,3946.3,3945.3,1.618]
[1734450189318,0.18204283,3946.2,3945.3,1.618]
[1734450189616,0.88476125,3946.8,3945.3,1.618]
[1734450189617,0.18204283,3946.1,3945.4,0.2618]
[1734450189819,1.75394283,3946.0,3944.6,0.12813791]
[1734450189994,0.18204283,3945.9,3944.6,0.12813791]
[1734450190443,0.18204283,3945.9,3945.1,2.618]
[1734450190731,0.55,3945.8,3945.1,1.0]
[1734450190876,0.76680073,3945.7,3945.1,1.0]
[1734450191077,0.18204283,3945.6,3945.1,1.0]
[1734450191679,0.18204283,3945.5,3945.1,1.0]
[1734450191981,0.18204283,3945.4,3945.1,1.0]
[1734450192182,1.5719,3946.4,3945.2,1.618]
[1734450192415,1.0060726,3946.3,3945.2,1.618]
[1734450192618,0.18199673,3946.2,3945.2,1.618]
[1734450192801,3.26617673,3946.1,3945.2,1.618]
[1734450192975,0.55,3945.9,3945.1,1.0]
[1734450193179,0.18199673,3945.8,3945.1,1.0]
[1734450193826,3.08429,3945.9,3945.1,1.0]
[1734450193827,0.32662867,3945.7,3945.1,1.0]
[1734450194036,0.18197214,3945.7,3945.1,1.0]
[1734450194328,0.18197214,3945.6,3945.1,1.0]
[1734450194710,0.18197214,3945.5,3945.1,1.0]
[1734450194880,0.73197214,3945.4,3945.1,1.0]
[1734450195079,6.08472,3945.2,3945.1,1.0]
[1734450195326,7.83859214,3945.2,3945.1,1.0]
[1734450197498,0.55,3944.5,3943.5,1.618]
[1734450197726,0.18162896,3944.4,3943.5,1.618]
[1734450197915,0.42752652,3944.3,3943.5,1.618]
[1734450198109,0.18162896,3944.2,3943.5,1.618]
[1734450199087,0.55,3944.5,3943.5,1.618]
[1734450199333,0.18142481,3944.4,3943.5,1.618]
[1734450199634,0.55,3944.5,3943.5,1.618]
[1734450199925,0.55,3944.5,3943.5,1.7798]
[1734450200129,0.18141847,3944.4,3943.5,1.618]
[1734450200692,0.55,3944.9,3943.5,1.618]
[1734450200893,0.18145168,3944.8,3943.5,1.618]
[1734450201887,0.18145168,3945.0,3943.6,0.02535596]
[1734450202082,0.18145168,3945.0,3943.2,3.0]
[1734450202083,2.53465,3945.4,3943.7,1.618]
[1734450202299,0.18141395,3945.2,3943.8,0.1618]
[1734450202590,3.54363621,3945.1,3943.8,0.1618]
[1734450203135,0.18138604,3945.0,3943.7,1.618]
[1734450203885,3.18138604,3945.0,3942.3,0.02535535]
[1734450204088,3.54363621,3944.6,3943.2,1.618]
[1734450204412,0.18132393,3944.5,3943.2,1.618]
[1734450204737,0.56619024,3944.5,3943.2,1.7798]
[1734450204944,3.54363621,3944.6,3943.2,1.7798]
[1734450205089,0.18134115,3944.5,3943.2,1.7798]
[1734450205287,3.54363621,3944.6,3943.2,1.7798]
[1734450205506,0.18131974,3944.5,3943.2,1.7798]
[1734450205729,0.18132736,3944.4,3943.2,1.7798]
[1734450205893,0.67249636,3944.3,3943.2,1.618]
[1734450206290,3.54363621,3944.1,3943.2,1.618]
[1734450207232,3.54363621,3944.6,3943.2,1.618]
[1734450207407,0.18131906,3944.5,3943.2,1.618]
[1734450207611,3.54363621,3944.6,3943.3,1.618]
[1734450207912,0.54804209,3944.5,3943.3,1.618]
[1734450208133,0.181325,3944.4,3943.3,1.618]
[1734450208928,3.54363621,3944.1,3943.3,1.618]
[1734450209130,0.73136989,3944.0,3942.6,1.618]
[1734450209305,3.54363621,3943.6,3942.6,1.618]
[1734450209509,0.53573351,3943.5,3942.6,1.618]
[1734450209717,0.35436362,3943.5,3942.6,1.618]
[1734450211896,0.18145469,3943.4,3942.6,1.618]
[1734450212337,0.35436362,3943.5,3942.6,1.618]
[1734450213154,0.1815062,3943.4,3942.6,1.618]
[1734450213304,0.4079506,3943.4,3942.6,1.618]
[1734450214025,1.563661,3944.0,3942.6,1.618]
[1734450214026,1.013661,3944.0,3942.6,1.618]
[1734450214189,0.12811191,3944.1,3942.8,1.5682]
[1734450214388,0.12811191,3944.1,3942.9,1.59354489]
[1734450214793,0.12370292,3944.7,3942.9,1.5682]
[1734450215107,0.12370292,3944.7,3942.9,3.31678089]
[1734450215433,4.12838705,3945.3,3943.2,1.5682]
[1734450215594,3.54363621,3944.8,3943.3,1.5682]
[1734450216296,1.5214,3945.9,3943.3,1.5682]
[1734450216297,0.18194377,3944.7,3943.3,1.5682]
[1734450216643,0.12877052,3945.1,3943.3,1.5682]
[1734450216821,3.54363621,3944.8,3943.3,1.5682]
[1734450216996,6.63954032,3944.7,3943.3,1.5682]
[1734450217201,0.18194245,3944.6,3943.3,1.5682]
[1734450217430,0.55,3944.5,3943.3,1.5682]
[1734450217730,0.18194245,3944.4,3943.3,1.5682]
[1734450217937,3.547452,3946.0,3943.5,1.5682]
[1734450218230,5.06503621,3946.1,3943.7,1.5682]
[1734450218430,5.06503621,3946.1,3943.8,1.5682]
[1734450218794,7.59918621,3946.1,3943.8,1.5682]
[1734450218999,8.61234421,3946.1,3943.8,1.5682]
[1734450219235,1.5214,3946.1,3943.8,1.59355056]
[1734450219435,0.18217619,3946.0,3943.9,1.5682]
[1734450219800,1.5214,3946.6,3944.3,3.0]
[1734450219996,0.43588559,3946.5,3944.5,1.5682]
[1734450220327,0.18218018,3946.4,3944.8,1.5682]
[1734450220550,0.18218018,3946.3,3945.0,1.5682]
[1734450220757,2.53705406,3947.0,3945.0,1.5682]
[1734450220971,0.18221849,3946.9,3945.0,1.5682]
[1734450221472,3.18221849,3946.9,3945.0,1.5682]
[1734450221768,1.30414574,3946.8,3945.2,1.5682]
[1734450221930,0.18221849,3946.7,3945.2,1.5682]
[1734450222482,0.12810965,3946.3,3945.2,1.5682]
[1734450222630,0.18221849,3946.2,3945.2,1.5682]
[1734450225261,0.18221849,3946.2,3945.3,1.58533746]
[1734450225478,2.03159268,3947.7,3945.7,3.54363621]
[1734450225787,2.03159268,3947.7,3945.9,1.5682]
[1734450225988,2.03159268,3947.7,3946.1,1.5874]
[1734450227075,2.03159268,3947.7,3946.2,3.54363621]
[1734450227262,2.03159268,3947.7,3946.4,1.5874]
[1734450227466,2.03159268,3947.7,3946.8,3.0]
[1734450227691,2.03159268,3947.7,3946.9,1.5874]
[1734450231625,1.5473,3949.5,3947.3,1.5874]
[1734450231864,0.18100423,3949.4,3947.4,1.5874]
[1734450231981,1.5473,3949.5,3947.5,1.5874]
[1734450232182,0.407924,3949.4,3947.7,1.5874]
[1734450232428,4.07926,3949.5,3947.7,1.5874]
[1734450232593,0.12946346,3948.6,3947.7,1.5874]
[1734450234429,2.53177,3949.9,3947.6,0.46127284]
[1734450234430,1.5473,3950.3,3948.5,1.5874]
[1734450234634,1.5473,3950.3,3948.6,0.02532392]
[1734450234938,0.15473,3950.2,3948.7,1.5874]
[1734450235691,0.12365639,3949.8,3948.7,1.5874]
[1734450236229,0.55,3949.7,3948.7,1.5874]
[1734450240521,0.55,3949.4,3948.3,1.5874]
[1734450241121,1.5473,3949.5,3948.3,1.5874]
[1734450241759,1.5473,3949.5,3946.8,0.29143563]
[1734450241760,0.55,3949.7,3948.4,1.67392498]
[1734450241971,0.12365639,3949.8,3948.4,1.6486]
[1734450242133,0.12365639,3949.8,3948.5,3.0]
[1734450242334,1.5222,3950.7,3948.7,1.6486]
[1734450242558,1.5222,3950.7,3948.9,3.54363621]
[1734450242759,1.00835838,3953.2,3949.2,2.1986]
[1734450243001,2.52911,3954.0,3948.8,0.37983141]
[1734450243002,0.26371514,3952.2,3951.2,3.0]
[1734450243283,0.26371514,3952.2,3949.8,0.12947312]
[1734450243284,0.26371514,3952.2,3951.3,1.6486]
[1734450243447,0.12461645,3952.7,3951.3,1.6486]
[1734450244189,2.52999,3952.6,3951.3,1.6486]
[1734450244335,2.65456645,3952.7,3951.3,1.6486]
[1734450244532,2.53017,3952.3,3951.3,1.6486]
[1734450244976,3.0,3952.4,3951.3,1.6486]
[1734450245157,3.0,3952.4,3949.9,4.6486]
[1734450245346,2.53052,3951.8,3949.9,4.6486]
[1734450245528,2.53035,3952.1,3949.9,4.6486]
[1734450245731,0.67561841,3951.8,3949.9,4.6486]
[1734450245936,0.55,3951.6,3949.9,1.6486]
[1734450246187,0.67561841,3951.8,3949.9,1.6486]
[1734450247267,0.67561841,3951.8,3949.9,3.0]
[1734450247490,0.67561841,3951.8,3950.0,1.6486]
[1734450247705,0.55,3951.6,3950.0,4.6486]
[1734450247856,0.55,3951.6,3950.0,1.6486]
[1734450249491,0.12561841,3951.8,3950.4,3.0]
[1734450249700,0.12561841,3951.8,3950.5,1.6486]
[1734450249898,0.12561841,3951.8,3950.7,1.6486]
[1734450251479,2.52994,3952.7,3950.7,1.6486]
[1734450251678,0.18061137,3952.6,3950.7,1.6486]
[1734450251887,2.53012,3952.4,3950.7,1.6486]
[1734450252191,0.18061137,3952.5,3950.7,1.6486]
[1734450252192,0.18061137,3952.3,3950.7,1.6486]
[1734450252402,3.0,3953.0,3950.7,1.6486]
[1734450252605,2.53004,3952.5,3950.7,1.6486]
[1734450252769,0.55,3952.3,3950.7,1.6486]
[1734450252957,0.55,3952.4,3950.7,1.6486]
[1734450253159,0.55,3952.2,3950.7,1.6486]
[1734450253396,0.12808096,3952.1,3950.7,1.6486]
[1734450253550,2.52998,3952.6,3950.7,1.6486]
[1734450253551,0.55,3952.5,3950.7,1.6486]
[1734450253756,0.12905566,3951.9,3950.7,1.6486]
[1734450256380,0.12905566,3951.9,3950.3,3.66992088]
[1734450256381,0.12905566,3951.9,3951.0,1.6486]
[1734450256590,0.12905566,3951.9,3951.1,4.6486]
[1734450256772,0.12905566,3951.9,3950.4,3.0]
[1734450256986,0.12905566,3951.9,3950.6,1.6486]
[1734450257407,0.405186,3953.0,3950.8,3.54363621]
[1734450257713,2.52999,3952.6,3951.0,1.6486]
[1734450258001,0.18132561,3952.5,3951.0,1.6486]
[1734450258263,0.30783061,3952.5,3951.0,1.6486]
[1734450258418,2.53023,3952.2,3951.0,1.6486]
[1734450258619,0.18132561,3952.4,3951.0,1.6486]
[1734450258620,0.18132561,3952.1,3951.0,1.6486]
[1734450258798,2.53016,3952.4,3951.0,1.6486]
[1734450258799,0.18132561,3952.0,3951.0,1.6486]
[1734450258999,0.18132561,3951.9,3951.0,1.6486]
[1734450259309,0.55,3952.2,3951.0,1.6486]
[1734450259310,0.18132561,3951.8,3951.0,1.6486]
[1734450259470,0.55,3952.4,3951.0,1.6486]
[1734450259672,0.55,3952.2,3951.0,1.6486]
[1734450259890,0.18141802,3952.1,3951.0,1.6486]
[1734450260182,2.5303,3952.1,3951.0,1.6486]
[1734450260397,0.7314933,3952.0,3951.0,1.6486]
[1734450260697,0.1814933,3951.9,3951.0,1.6486]
[1734450260896,0.1814933,3951.8,3951.0,1.6486]
[1734450261206,0.1814933,3951.7,3951.0,1.6486]
[1734450261411,0.1814933,3951.6,3951.0,1.6486]
[1734450261613,0.7314933,3951.5,3949.9,1.6486]
[1734450261909,0.55,3951.3,3949.9,1.6486]
[1734450262129,0.1814933,3951.2,3950.0,1.96039295]
[1734450262287,0.12366807,3951.9,3950.4,1.6486]
[1734450262482,0.18175388,3951.8,3950.4,1.6486]
[1734450263390,0.18183955,3951.7,3950.5,1.6486]
[1734450263799,0.18183955,3951.7,3950.6,1.6486]
[1734450263985,0.12366807,3951.9,3950.6,1.6486]
[1734450263986,0.18183955,3951.6,3950.6,1.6486]
[1734450264193,0.12366807,3951.9,3950.6,1.6486]
[1734450264194,0.18183955,3951.5,3950.6,1.6486]
[1734450264425,0.18183955,3951.4,3950.6,1.6486]
[1734450264628,0.12366807,3951.9,3950.6,1.6486]
[1734450264829,0.1820211,3951.8,3950.8,1.6486]
[1734450266398,0.1820211,3951.7,3950.8,1.6486]
[1734450266608,0.1820211,3952.4,3950.8,1.6486]
[1734450266793,0.1820211,3952.3,3950.8,1.6486]
[1734450267138,0.1820211,3952.2,3950.8,1.6486]
[1734450267339,0.1820211,3952.1,3950.8,1.6486]
[1734450267504,0.1820211,3952.0,3950.8,1.6486]
[1734450267708,0.1820211,3951.9,3950.8,1.6486]
[1734450267893,0.1820211,3951.8,3950.8,1.6486]
[1734450268255,3.2625811,3951.7,3950.8,1.6486]
[1734450268392,0.1820211,3951.6,3950.8,1.6486]
[1734450268597,0.7320211,3951.5,3950.8,1.6486]
[1734450268792,0.55,3951.3,3950.8,1.6486]
[1734450269005,0.1820211,3951.2,3950.8,1.6486]
[1734450269230,0.1820211,3951.1,3950.8,1.6486]
[1734450269432,0.1820211,3951.0,3950.8,1.6486]
[1734450269591,0.1820211,3950.9,3950.8,1.6486]
[1734450269796,0.182579,3950.9,3950.8,1.6486]
[1734450273029,4.5281,3952.4,3950.8,1.6486]
[1734450273284,4.24332633,3952.3,3950.8,1.6486]
[1734450273392,3.0,3952.1,3950.8,1.6486]
[1734450273594,3.18315471,3952.0,3950.8,1.6486]
[1734450273792,0.18315471,3951.9,3950.8,1.6486]
[1734450274043,0.12725778,3951.7,3950.8,1.6486]
[1734450274194,0.18315471,3951.6,3950.8,1.6486]
[1734450274392,0.18315471,3951.5,3950.8,1.6486]
[1734450274595,0.18315471,3951.4,3950.8,1.6486]
[1734450274836,0.18315471,3951.3,3950.8,1.6486]
[1734450275013,0.18315471,3951.2,3950.8,1.6486]
[1734450275217,0.18315471,3951.1,3950.8,1.6486]
[1734450275423,0.18315471,3951.0,3950.8,1.6486]
[1734450275594,0.18315471,3950.9,3950.8,1.6486]
[1734450276196,0.18315471,3950.9,3949.9,1.5375]
[1734450276403,0.18315471,3950.8,3950.1,1.5375]
[1734450276606,0.18315471,3950.7,3950.1,1.5375]
[1734450276814,0.18315471,3950.6,3950.1,1.5375]
[1734450277036,0.18315471,3950.5,3950.1,1.5375]
[1734450277240,0.18315471,3950.4,3950.1,1.5375]
[1734450277530,0.18315471,3950.3,3950.1,1.5375]
[1734450277731,0.18315471,3950.2,3950.1,1.5375]
[1734450278097,1.6046,3951.1,3950.1,1.5375]
[1734450278309,0.91193018,3951.0,3950.1,1.5375]
[1734450278635,0.18315471,3950.9,3950.1,1.5375]
[1734450278942,0.18315471,3950.8,3950.1,1.5375]
[1734450279107,0.18315471,3950.7,3950.1,1.5375]
[1734450279312,0.55,3951.0,3950.1,1.5375]
[1734450279313,0.18315471,3950.6,3950.1,1.5375]
[1734450279696,0.18315471,3950.5,3950.1,1.69125]
[1734450279898,0.18315471,3950.4,3950.1,1.69125]
[1734450280094,0.18315471,3950.3,3950.1,1.69125]
[1734450280412,0.55,3951.6,3950.1,1.69125]
[1734450280745,0.55,3951.4,3950.1,1.5375]
[1734450280908,3.12725778,3951.7,3950.1,1.5375]
[1734450280909,0.55,3951.0,3950.1,1.5375]
[1734450281248,0.18294333,3950.9,3950.1,1.5375]
[1734450281418,0.18294333,3950.8,3950.1,1.5375]
[1734450281612,0.18294333,3950.7,3950.1,1.5375]
[1734450281920,0.18294333,3950.6,3950.1,1.5375]
[1734450282122,0.18294333,3950.5,3950.1,1.5375]
[1734450282344,0.18294333,3950.4,3950.1,1.69125]
[1734450282640,0.18294333,3951.0,3950.1,1.69125]
[1734450282799,0.18295785,3950.9,3950.1,1.5375]
[1734450282997,0.18294883,3950.8,3950.1,1.5375]
[1734450283215,0.12725778,3951.7,3950.1,1.5375]
[1734450283596,0.12725778,3951.7,3950.1,1.66480632]
[1734450284135,0.18295434,3951.6,3950.1,1.66480632]
[1734450284296,0.18295434,3951.6,3950.3,1.5375]
[1734450284297,0.18295434,3951.5,3950.3,1.5375]
[1734450284500,0.12725778,3951.7,3950.3,1.5375]
[1734450284501,0.55,3951.3,3950.3,1.5375]
[1734450284704,0.18295164,3951.2,3950.3,1.5375]
[1734450285025,0.18295164,3951.1,3950.3,1.5375]
[1734450285241,0.18295164,3951.0,3950.3,1.5375]
[1734450285397,0.55,3951.3,3950.3,1.5375]
[1734450285398,0.18295164,3951.2,3950.3,1.5375]
[1734450285716,0.18295164,3951.1,3950.3,1.5375]
[1734450285916,0.18295164,3951.0,3950.3,1.5375]
[1734450286137,0.18295164,3951.2,3950.3,1.5375]
[1734450286307,4.10214214,3951.4,3950.3,1.5375]
[1734450286506,0.55,3951.2,3950.3,1.5375]
[1734450287304,1.02134214,3951.4,3950.5,2.87520235]
[1734450287532,2.16994207,3951.7,3950.6,1.6008]
[1734450287533,0.12725778,3951.7,3950.6,1.6008]
[1734450288439,1.14859992,3951.7,3950.6,1.6008]
[1734450288750,2.38530668,3951.6,3950.6,1.6008]
[1734450288907,0.26806131,3951.6,3950.6,1.6008]
[1734450289530,0.84707487,3951.5,3950.6,1.6008]
[1734450289715,0.26806131,3951.6,3950.6,1.6008]
[1734450289917,0.55,3951.4,3950.6,1.6008]
[1734450290118,0.19666612,3951.4,3950.6,1.6008]
[1734450290310,0.84714019,3951.3,3950.6,1.6008]
[1734450290944,1.21800826,3951.4,3950.6,1.6008]
[1734450291243,0.84674408,3951.3,3950.6,1.6008]
[1734450291806,1.02134214,3951.6,3950.6,1.6008]
[1734450292144,0.12406671,3951.8,3950.8,1.6008]
[1734450292346,3.26229754,3951.8,3950.8,1.6008]
[1734450292554,0.84674556,3951.7,3950.8,1.6008]
[1734450292721,1.14540885,3951.8,3950.8,1.6008]
[1734450292722,0.12406671,3951.8,3950.8,1.6008]
[1734450292922,1.02134214,3951.9,3950.8,1.6008]
[1734450293147,0.84675274,3951.8,3950.9,0.16008]
[1734450293443,1.02134214,3952.0,3951.0,1.6008]
[1734450295144,1.02134214,3952.1,3951.0,1.6008]
[1734450295340,1.02134214,3952.4,3951.0,1.6008]
[1734450295547,1.02134214,3952.6,3951.1,1.6008]
[1734450295861,3.13849542,3952.6,3951.3,1.6008]
[1734450296033,0.84686131,3952.5,3951.3,1.6008]
[1734450296555,0.55,3952.6,3951.3,1.6008]
[1734450296753,0.84666598,3952.5,3951.3,1.6008]
[1734450297063,1.69333213,3952.9,3951.3,1.6008]
[1734450297064,1.02134214,3953.0,3951.5,1.6008]
[1734450297208,0.25533554,3953.0,3951.6,0.74760024]
[1734450297517,1.02134214,3952.8,3951.5,1.6008]
[1734450297720,3.13791692,3952.7,3951.5,1.6008]
[1734450298058,1.02134214,3952.8,3951.5,1.6008]
[1734450298374,0.8465387,3952.7,3951.5,1.6008]
[1734450298534,1.14988687,3952.9,3951.5,1.6008]
[1734450298711,1.02134214,3952.6,3951.5,1.6008]
[1734450299123,2.6660252,3952.7,3951.5,1.6008]
[1734450299124,0.84641008,3952.5,3951.5,1.6008]
[1734450299323,1.3150657,3952.8,3951.5,1.6008]
[1734450299529,2.11582328,3952.7,3951.5,1.6008]
[1734450300049,0.55,3952.7,3951.5,1.6008]
[1734450300248,0.55,3952.5,3951.5,1.6008]
[1734450300610,1.86782732,3952.4,3951.5,1.6008]
[1734450300810,1.02134214,3952.5,3951.5,1.6008]
[1734450301061,1.22070318,3952.6,3951.5,1.6008]
[1734450301347,1.3150657,3952.8,3951.5,1.6008]
[1734450301547,0.84644164,3952.7,3951.5,1.6008]
[1734450301914,1.14988687,3952.9,3951.5,1.6008]
[1734450301915,0.12854473,3952.9,3951.5,1.6008]
[1734450302854,1.14988687,3952.9,3951.5,1.6008]
[1734450303018,1.02134214,3952.7,3951.5,1.6008]
[1734450303221,0.81819001,3952.6,3951.5,1.6008]
[1734450303448,1.02134214,3952.5,3951.5,1.6008]
[1734450303648,0.81819001,3952.6,3951.5,1.6008]
[1734450303958,0.26819001,3952.6,3951.5,1.6008]
[1734450304363,1.3962338,3952.5,3951.5,1.6008]
[1734450304576,1.57134214,3952.3,3951.5,1.6008]
[1734450304722,0.55609683,3952.4,3951.5,1.6008]
[1734450305062,0.55,3952.8,3951.5,1.6008]
[1734450305256,0.55,3952.8,3951.0,2.87520235]
[1734450305257,0.55,3952.8,3951.6,0.02530285]
[1734450305419,0.12854473,3952.9,3951.1,1.78148501]
[1734450305622,0.12854473,3952.9,3952.1,1.6516]
[1734450307174,0.84610121,3952.8,3952.1,1.6516]
[1734450307320,1.29886461,3952.8,3952.1,1.6516]
[1734450307526,0.4527634,3952.8,3952.1,1.6516]
[1734450307734,1.39594897,3952.7,3952.1,1.6516]
[1734450307946,0.55,3952.8,3952.1,1.6516]
[1734450308347,0.12854473,3952.9,3952.1,1.6516]
[1734450313872,0.55,3953.3,3952.2,3.0]
[1734450314055,0.55,3953.3,3952.3,1.6516]
[1734450315105,1.6924837,3953.4,3952.3,1.6516]
[1734450315106,0.55,3953.4,3952.3,1.6516]
[1734450315236,0.12391138,3953.0,3952.3,1.6516]
[1734450315978,0.12391138,3953.0,3952.3,2.11676]
[1734450316299,0.12391138,3953.0,3952.4,1.6516]
[1734450318370,0.55,3952.9,3951.2,1.4951]
[1734450318792,0.55,3952.7,3951.2,1.4951]
[1734450319099,3.55,3952.5,3951.2,1.4951]
[1734450319408,0.55,3952.3,3951.2,1.4951]
[1734450319603,0.55,3952.1,3951.2,1.4951]
[1734450320108,0.55,3952.3,3951.2,1.4951]
[1734450320259,0.55,3952.5,3951.2,1.4951]
[1734450321102,0.55,3952.5,3951.3,1.4951]
[1734450321298,0.55,3952.5,3951.5,1.4951]
[1734450321509,1.26901865,3952.6,3951.5,1.4951]
[1734450322198,0.55,3952.5,3951.5,1.4951]
[1734450323607,0.55,3952.3,3951.5,1.4951]
[1734450324603,1.26901865,3952.6,3951.5,1.4951]
[1734450324821,1.26901865,3952.6,3951.6,0.14951]
[1734450325110,1.14716947,3953.0,3951.6,0.14951]
[1734450325314,0.84628435,3952.9,3951.6,0.14951]
[1734450325600,0.12391138,3953.0,3951.7,1.4951]
[1734450326505,1.14716947,3953.0,3951.7,1.4951]
[1734450326657,2.38391861,3952.9,3951.7,1.4951]
[1734450326866,0.84630583,3952.8,3951.7,1.4951]
[1734450327174,0.26820566,3952.9,3951.7,1.4951]
[1734450327175,0.55,3952.7,3951.7,1.4951]
[1734450327491,1.14716947,3953.0,3951.7,1.4951]
[1734450327690,0.12391138,3953.0,3951.7,1.4951]
[1734450327896,0.84705865,3952.9,3951.8,0.164461]
[1734450328100,0.12391138,3953.0,3951.9,1.4951]
[1734450328757,0.55,3952.9,3951.9,1.4951]
[1734450329604,0.55,3952.7,3951.9,1.4951]
[1734450329808,4.08678552,3952.7,3951.9,1.4951]
[1734450330022,4.08678552,3952.7,3950.3,3.0]
[1734450330023,0.55,3952.5,3951.6,1.4951]
[1734450330213,0.55,3952.3,3950.1,1.4951]
[1734450330513,2.84392937,3952.3,3950.1,1.4951]
[1734450330693,0.55,3952.1,3950.2,1.52040884]
[1734450331028,1.02325809,3952.4,3950.3,1.4951]
[1734450331187,1.02325809,3952.4,3949.7,0.33879295]
[1734450331188,1.17015583,3952.3,3950.5,1.4951]
[1734450331505,3.14177776,3952.2,3950.5,1.4951]
[1734450331914,2.11851967,3952.2,3950.5,1.4951]
[1734450332077,0.55,3952.0,3950.5,1.4951]
[1734450332437,1.57325809,3952.1,3950.5,1.4951]
[1734450332570,0.55,3951.9,3950.7,1.5395]
[1734450333469,1.02325809,3952.1,3950.7,1.5395]
[1734450333671,1.14666026,3952.4,3950.7,1.5395]
[1734450333878,3.14448136,3952.3,3950.7,1.5395]
[1734450334177,0.84848931,3952.2,3950.7,1.5395]
[1734450334384,1.02325809,3952.3,3950.9,1.5395]
[1734450334574,0.55,3952.2,3950.9,1.5395]
[1734450334912,0.84864298,3952.1,3950.9,1.5395]
[1734450335208,0.55,3951.9,3950.9,1.5395]
[1734450335390,1.02325809,3952.2,3950.9,1.5395]
[1734450335708,3.14530882,3952.1,3951.0,0.47117889]
[1734450335905,2.12205073,3952.0,3951.0,0.47117889]
[1734450336214,1.02325809,3952.1,3951.0,0.47117889]
[1734450336215,1.02325809,3952.1,3951.1,1.5395]
[1734450336365,0.84909752,3952.0,3951.1,1.5395]
[1734450336566,1.02325809,3952.1,3951.1,1.5395]
[1734450336778,1.02325809,3952.1,3951.2,0.15395]